bitfinex/quotes_ETHUSD_20251008
["timestamp","ask_amount","ask_price","bid_price","bid_amount"]
[1759938316067,1.92,4458.0,4457.9,0.1304]
[1759938316462,0.002,4458.3,4458.0,2.24312416]
[1759938316657,0.002,4458.3,4458.0,0.37815242]
[1759938316960,0.002,4458.3,4458.2,2.35505773]
[1759938317476,0.002,4458.3,4458.2,2.48445773]
[1759938318086,0.002,4458.3,4458.2,0.2414]
[1759938318284,0.002,4458.3,4457.9,0.001]
[1759938318285,2.24315836,4458.0,4457.9,0.001]
[1759938318487,5.25775836,4458.0,4457.9,0.001]
[1759938318688,7.50952881,4458.0,4457.9,0.001]
[1759938319572,7.04852881,4458.0,4457.9,0.001]
[1759938319772,4.79675836,4458.0,4457.9,0.001]
[1759938319992,1.92,4458.0,4457.9,0.001]
[1759938320358,4.16315836,4458.0,4457.9,0.001]
[1759938320560,4.79675836,4458.0,4457.9,0.001]
[1759938323888,5.25375836,4458.0,4457.9,0.001]
[1759938324065,7.50552881,4458.0,4457.9,0.001]
[1759938324471,6.87192881,4458.0,4457.9,0.001]
[1759938324665,7.50472881,4458.0,4457.9,0.001]
[1759938324895,7.04772881,4458.0,4457.9,0.001]
[1759938325058,4.79595836,4458.0,4457.9,0.001]
[1759938325865,2.5528,4458.0,4457.9,0.001]
[1759938326065,4.79595836,4458.0,4457.9,0.001]
[1759938326893,2.5528,4458.0,4457.9,0.001]
[1759938327210,4.79595836,4458.0,4457.9,0.001]
[1759938328779,5.25295836,4458.0,4457.9,0.001]
[1759938328988,4.79595836,4458.0,4457.9,0.001]
[1759938332304,4.79595836,4458.0,4457.4,0.001]
[1759938332305,4.79700998,4457.5,4457.4,0.001]
[1759938332506,7.33500998,4457.5,4457.4,0.001]
[1759938332673,18.71497492,4457.2,4457.1,1e-08]
[1759938332871,21.25297492,4457.2,4457.1,1e-08]
[1759938333171,23.96174537,4457.2,4457.1,1e-08]
[1759938335817,19.1801844,4457.2,4457.1,1e-08]
[1759938336021,2.5536,4457.2,4457.1,1e-08]
[1759938336183,1.92,4457.2,4457.1,1e-08]
[1759938336520,2.5536,4457.2,4457.1,1e-08]
[1759938337118,4.79716097,4457.2,4457.1,1e-08]
[1759938337614,2.5536,4457.2,4457.1,1e-08]
[1759938337917,0.457,4457.9,4457.1,1e-08]
[1759938338104,2.1446543,4457.8,4457.1,0.11200001]
[1759938338289,0.6336,4457.6,4457.1,0.11200001]
[1759938338484,0.6336,4457.4,4457.1,0.11200001]
[1759938339291,2.24355453,4457.3,4457.1,0.11200001]
[1759938339992,0.6336,4457.4,4457.1,0.11200001]
[1759938340195,2.24355148,4457.3,4457.1,0.11200001]
[1759938340593,0.6336,4457.6,4457.1,0.11200001]
[1759938340793,2.24356097,4457.2,4457.1,0.11200001]
[1759938342535,0.6336,4457.3,4457.1,0.11200001]
[1759938342727,1.92,4457.2,4457.1,0.11200001]
[1759938342927,0.6336,4457.4,4457.1,0.11200001]
[1759938343129,0.112,4457.9,4457.1,0.24140001]
[1759938343330,4.16310828,4458.1,4457.5,0.112]
[1759938343649,0.6336,4457.8,4457.5,0.112]
[1759938343830,2.87695965,4457.6,4457.5,0.112]
[1759938344014,4.79695965,4457.6,4457.5,0.112]
[1759938344210,2.24356097,4457.2,4457.1,1e-08]
[1759938344630,2.24356097,4457.2,4457.1,0.11200001]
[1759938347751,2.24276097,4457.2,4457.1,0.11200001]
[1759938349157,5.43698327,4457.2,4457.1,1e-08]
[1759938349330,5.88898327,4457.2,4457.1,1e-08]
[1759938350058,5.89098327,4457.2,4457.1,1e-08]
[1759938351052,5.43898327,4457.2,4457.1,1e-08]
[1759938353653,5.90548327,4457.2,4457.1,1e-08]
[1759938355251,8.44348327,4457.2,4457.1,1e-08]
[1759938357771,8.53334899,4457.2,4457.1,1e-08]
[1759938358261,5.90548327,4457.2,4457.1,1e-08]
[1759938358463,8.44348327,4457.2,4457.1,1e-08]
[1759938360270,4.79721131,4457.1,4457.0,0.001]
[1759938360436,4.90926165,4457.0,4456.9,0.001]
[1759938360638,7.91376165,4457.0,4456.9,0.001]
[1759938361144,4.90926165,4457.0,4456.9,0.001]
[1759938361446,7.91376165,4457.0,4456.9,0.001]
[1759938366538,0.6336,4456.8,4456.6,0.001]
[1759938366737,7.90242268,4456.7,4456.6,0.001]
[1759938366934,8.36892268,4456.7,4456.6,0.001]
[1759938367167,8.36892268,4456.7,4455.1,0.01]
[1759938367168,2.5536,4455.4,4455.1,0.01]
[1759938367333,10.69151,4456.7,4455.1,0.122]
[1759938367334,2.5536,4455.6,4455.1,0.122]
[1759938367534,2.24452488,4455.3,4455.1,0.122]
[1759938367755,4.79798261,4455.6,4455.1,0.122]
[1759938367957,2.24441701,4455.5,4455.1,0.122]
[1759938368242,0.6336,4455.4,4455.1,0.122]
[1759938368445,2.24456814,4455.2,4455.1,0.122]
[1759938368842,4.79816814,4455.2,4455.1,0.122]
[1759938369043,2.5536,4455.2,4455.1,0.122]
[1759938369868,1.92,4455.2,4455.1,0.01]
[1759938370168,1.92,4455.2,4455.1,0.122]
[1759938370852,1.9192,4455.2,4455.1,0.122]
[1759938371577,4.16376814,4455.2,4455.1,0.122]
[1759938371799,4.79736814,4455.2,4455.1,0.01]
[1759938374190,2.5528,4455.2,4455.1,0.01]
[1759938374378,4.79736814,4455.2,4455.1,0.01]
[1759938375606,2.5528,4455.2,4455.1,0.01]
[1759938375910,4.79736814,4455.2,4455.1,0.01]
[1759938376274,2.5528,4455.2,4455.1,0.01]
[1759938376702,4.79736814,4455.2,4455.1,0.01]
[1759938377306,5.26386814,4455.2,4455.1,0.01]
[1759938377504,6.98119874,4455.2,4455.1,0.01]
[1759938377676,2.24507206,4454.2,4451.6,0.1294]
[1759938378014,4.16500982,4454.4,4454.3,0.112]
[1759938378872,2.5536,4454.4,4453.4,0.1294]
[1759938379100,1.92,4454.2,4454.0,0.112]
[1759938379408,2.24507206,4454.2,4454.0,0.112]
[1759938379899,2.87867206,4454.2,4454.0,0.112]
[1759938380105,3.98579436,4454.2,4454.0,0.112]
[1759938380271,1.7407223,4454.2,4454.0,0.112]
[1759938380475,2.87867206,4454.2,4454.0,0.112]
[1759938380901,0.6336,4454.2,4454.0,0.112]
[1759938381776,0.112,4454.7,4454.1,2.25511422]
[1759938382087,0.6336,4454.6,4454.1,0.01]
[1759938382481,0.6336,4454.6,4454.2,0.1294]
[1759938382680,0.6336,4454.6,4454.1,0.01]
[1759938382870,2.24493236,4454.5,4454.1,0.01]
[1759938383075,1.92,4454.5,4454.1,0.01]
[1759938384706,1.92,4454.5,4454.1,0.011]
[1759938384900,4.16493289,4454.5,4454.1,0.011]
[1759938385070,1.92,4454.5,4454.1,0.011]
[1759938385705,0.002,4456.6,4454.4,0.112]
[1759938385706,0.6336,4455.1,4454.4,0.112]
[1759938385880,4.79833242,4454.9,4454.4,0.112]
[1759938386923,2.24477303,4454.8,4454.4,0.112]
[1759938387090,1.92,4454.7,4454.4,0.112]
[1759938387407,2.24482086,4454.7,4454.4,0.112]
[1759938387602,0.6336,4455.1,4454.4,0.112]
[1759938387807,0.6336,4454.8,4454.4,0.112]
[1759938388316,2.24477266,4454.8,4454.4,0.112]
[1759938388527,2.24485633,4454.7,4454.4,0.112]
[1759938388819,1.92,4454.7,4454.4,0.112]
[1759938389019,2.5536,4454.9,4454.4,0.112]
[1759938389186,2.24476968,4454.8,4454.4,0.112]
[1759938389384,0.4631,4454.8,4454.4,0.112]
[1759938389811,4.16477002,4454.8,4454.4,0.112]
[1759938390082,1.92,4454.7,4454.4,0.112]
[1759938390488,2.24477217,4454.8,4454.4,0.112]
[1759938390784,2.5536,4454.9,4454.4,0.112]
[1759938391020,4.16492086,4454.5,4454.4,0.112]
[1759938391401,4.62802086,4454.5,4454.4,0.112]
[1759938391735,4.79867206,4454.2,4454.1,0.011]
[1759938392032,19.93632106,4454.2,4454.1,0.011]
[1759938392235,20.39942106,4454.2,4454.1,0.011]
[1759938392612,20.39942106,4454.2,4453.6,0.001]
[1759938392613,2.87892411,4453.7,4453.6,0.001]
[1759938392808,4.79892411,4453.7,4453.6,0.001]
[1759938393125,5.26202411,4453.7,4453.6,0.001]
[1759938393330,5.26202411,4453.7,4453.2,0.001]
[1759938393331,2.87912578,4453.3,4453.2,0.001]
[1759938393634,4.91112578,4453.3,4453.2,0.001]
[1759938393824,5.37342578,4453.3,4453.2,0.001]
[1759938394019,3.1287,4453.3,4453.2,0.001]
[1759938394254,5.37422578,4453.3,4453.2,0.001]
[1759938394556,6.34303284,4453.3,4453.2,0.001]
[1759938394770,6.34303284,4453.3,4453.1,0.01]
[1759938394771,4.79917621,4453.2,4453.1,0.01]
[1759938394920,4.79917621,4453.2,4452.1,0.122]
[1759938394921,2.5536,4452.4,4452.1,0.122]
[1759938395120,0.6336,4452.4,4452.1,0.122]
[1759938395322,0.4631,4452.4,4452.1,0.122]
[1759938395619,0.4631,4452.3,4452.1,0.122]
[1759938395816,0.6336,4452.3,4452.1,0.122]
[1759938396343,2.3831,4452.6,4452.1,0.122]
[1759938396344,0.6336,4452.5,4452.1,0.122]
[1759938396549,0.6336,4452.3,4452.1,0.122]
[1759938397358,5.26278058,4452.2,4452.1,0.01]
[1759938397650,5.37478058,4452.2,4452.1,0.01]
[1759938397852,2.6656,4452.2,4452.1,0.01]
[1759938398158,5.37478058,4452.2,4452.1,0.01]
[1759938398355,3.1287,4452.2,4452.1,0.01]
[1759938398654,3.36045176,4452.2,4452.1,0.01]
[1759938399148,0.112,4452.2,4452.1,0.01]
[1759938399352,0.112,4453.1,4452.1,0.2514]
[1759938399527,0.6336,4453.0,4452.1,0.122]
[1759938399720,14.13161275,4452.8,4452.1,0.122]
[1759938399959,0.4631,4452.7,4452.1,0.122]
[1759938400156,0.6336,4452.6,4452.1,0.122]
[1759938402467,0.6336,4452.7,4452.1,0.123]
[1759938402664,1.1081,4452.7,4452.1,0.123]
[1759938403040,0.6336,4452.3,4452.1,0.123]
[1759938403372,5.16704058,4452.2,4452.1,0.011]
[1759938403533,5.64154058,4452.2,4452.1,0.011]
[1759938404042,2.92096,4452.2,4452.1,0.011]
[1759938404438,2.6656,4452.2,4452.1,0.011]
[1759938404740,3.1401,4452.2,4452.1,0.011]
[1759938404972,5.38618058,4452.2,4452.1,0.011]
[1759938405945,5.6971,4452.2,4452.1,0.011]
[1759938406460,7.94318058,4452.2,4452.1,0.011]
[1759938406645,8.96209877,4452.2,4452.1,0.011]
[1759938407238,0.6336,4451.8,4451.6,0.001]
[1759938407482,21.70684561,4451.7,4451.6,0.001]
[1759938407636,22.18134561,4451.7,4451.6,0.001]
[1759938408870,2.88018519,4451.2,4451.1,0.01]
[1759938409037,7.36018519,4451.2,4451.1,0.01]
[1759938409246,7.83468519,4451.2,4451.1,0.01]
[1759938410083,3.0281,4451.2,4451.1,0.01]
[1759938410282,5.1136,4451.2,4451.1,0.01]
[1759938410496,4.48,4451.2,4451.1,0.01]
[1759938410784,2.5536,4451.2,4451.1,0.01]
[1759938411002,0.112,4451.4,4451.1,0.23567309]
[1759938411283,0.6336,4451.7,4451.1,0.122]
[1759938411593,2.5536,4451.7,4451.1,0.122]
[1759938412254,2.561,4451.9,4451.1,2.25662808]
[1759938412492,0.112,4452.1,4451.3,0.112]
[1759938413158,0.112,4452.1,4451.4,2.24648425]
[1759938413357,0.6336,4452.0,4451.4,2.24648425]
[1759938413567,0.54416171,4453.3,4451.5,0.16286433]
[1759938413880,0.112,4452.8,4452.0,0.112]
[1759938414182,0.112,4452.8,4452.0,2.35817449]
[1759938414379,0.112,4452.8,4452.0,2.83266409]
[1759938414701,0.2209,4453.8,4452.0,2.83266409]
[1759938414702,0.2209,4453.8,4452.1,0.16286131]
[1759938414994,2.561,4454.0,4453.1,0.112]
[1759938415153,0.122,4453.9,4453.1,0.112]
[1759938415356,0.122,4453.9,4453.1,2.35761745]
[1759938415668,0.122,4453.9,4453.1,0.112]
[1759938416171,2.24531469,4453.8,4453.1,0.112]
[1759938416376,2.5536,4453.7,4453.1,0.112]
[1759938416690,2.24557621,4453.2,4453.1,0.112]
[1759938416915,2.24477621,4453.2,4453.1,0.112]
[1759938417217,2.349,4453.2,4453.1,0.112]
[1759938417388,4.16557621,4453.2,4453.1,0.112]
[1759938417589,1.92,4453.2,4453.1,0.112]
[1759938418314,4.16557621,4453.2,4453.1,0.112]
[1759938418505,1.92,4453.2,4453.1,0.112]
[1759938419243,0.7456,4453.7,4453.1,0.112]
[1759938419398,0.01,4453.9,4453.1,0.2524]
[1759938419593,0.01,4453.9,4453.7,0.112]
[1759938420623,0.01,4453.9,4453.8,2.38567369]
[1759938421117,0.01,4453.9,4453.7,0.112]
[1759938421829,2.87887369,4453.8,4453.7,0.112]
[1759938422130,2.87887369,4453.8,4451.6,0.1404]
[1759938422131,0.002,4453.2,4451.6,0.1404]
[1759938422294,0.6336,4453.0,4452.4,0.112]
[1759938422631,1.92,4452.7,4452.4,0.112]
[1759938422942,2.87952925,4452.5,4452.4,0.112]
[1759938423099,2.24621843,4452.0,4451.8,0.112]
[1759938423293,2.5536,4452.4,4451.1,0.011]
[1759938423294,2.24638332,4451.6,4451.1,0.011]
[1759938423521,2.24657775,4451.3,4451.1,0.123]
[1759938423922,2.24649146,4451.4,4451.1,0.123]
[1759938424111,0.6336,4451.2,4451.1,0.123]
[1759938424315,0.6336,4451.2,4451.1,0.011]
[1759938424696,2.5536,4451.2,4451.1,0.011]
[1759938425844,5.48454519,4451.2,4451.1,0.011]
[1759938427742,2.80896,4451.2,4451.1,0.011]
[1759938428064,1.92,4451.2,4451.1,0.011]
[1759938428449,2.5536,4451.2,4451.1,0.011]
[1759938428809,4.80018519,4451.2,4451.1,0.011]
[1759938429257,2.9826,4451.2,4451.1,0.011]
[1759938429440,5.22918519,4451.2,4451.1,0.011]
[1759938429764,5.72403886,4451.2,4451.1,0.011]
[1759938430653,5.72403886,4451.2,4450.1,0.122]
[1759938430950,4.80069001,4450.2,4450.1,0.01]
[1759938431238,7.36469001,4450.2,4450.1,0.01]
[1759938431450,7.79369001,4450.2,4450.1,0.01]
[1759938431631,0.6336,4450.0,4449.1,0.01]
[1759938431850,0.112,4449.7,4449.1,0.01]
[1759938432020,0.6336,4449.5,4449.1,0.01]
[1759938432465,1.0626,4449.5,4449.1,0.01]
[1759938432827,0.6336,4450.0,4449.2,0.1404]
[1759938433244,0.6336,4450.3,4449.2,0.1404]
[1759938433462,0.6336,4450.0,4449.1,0.01]
[1759938433960,2.24709001,4450.2,4449.2,2.24759507]
[1759938434140,2.5536,4450.3,4449.1,0.01]
[1759938434542,2.5536,4450.3,4449.1,2.25763566]
[1759938434543,0.6336,4450.2,4449.1,2.25763566]
[1759938434749,0.6336,4450.2,4449.3,2.24753796]
[1759938434954,0.67494676,4451.1,4449.4,0.02247494]
[1759938435152,2.67570516,4451.0,4449.3,4.81149488]
[1759938435356,0.6336,4450.2,4449.1,2.574]
[1759938435660,1.92,4450.1,4449.1,2.574]
[1759938435863,2.5536,4450.3,4449.2,0.2574]
[1759938436068,4.8007418,4450.1,4449.2,0.2574]
[1759938436257,2.8807418,4450.1,4449.2,0.2574]
[1759938436427,2.8807418,4450.1,4449.1,4.82163578]
[1759938436428,1.92,4450.0,4449.1,0.01]
[1759938436634,4.1672301,4450.0,4449.1,0.01]
[1759938436853,2.5536,4450.0,4449.1,0.01]
[1759938437055,0.6336,4449.6,4449.1,0.01]
[1759938437252,2.5536,4449.3,4449.1,0.01]
[1759938437458,1.08096,4449.2,4449.1,0.01]
[1759938437764,5.23019507,4449.2,4449.1,0.01]
[1759938438836,7.79519507,4449.2,4449.1,0.01]
[1759938439269,5.5476,4449.2,4449.1,0.01]
[1759938439487,2.5536,4449.2,4449.1,0.01]
[1759938439869,1.9192,4449.2,4449.1,0.01]
[1759938440073,1.9192,4449.2,4449.1,2.25764559]
[1759938440273,1.9192,4449.2,4449.1,0.24980456]
[1759938440479,1.9192,4449.2,4449.1,0.01]
[1759938440678,1.9192,4449.2,4449.1,2.25764559]
[1759938440854,1.9192,4449.2,4449.1,0.1504]
[1759938441054,1.9192,4449.2,4449.1,0.011]
[1759938441389,1.9192,4449.2,4449.1,2.25864559]
[1759938441558,1.9192,4449.2,4449.1,2.70928982]
[1759938441958,2.995,4450.7,4449.1,0.46164423]
[1759938442159,2.24697792,4450.5,4449.2,2.38797029]
[1759938442359,2.5536,4450.3,4449.2,0.1404]
[1759938442576,2.5536,4450.0,4449.1,0.011]
[1759938442793,0.6336,4450.0,4449.1,0.011]
[1759938442973,0.6336,4450.1,4449.5,0.112]
[1759938444188,0.6336,4450.1,4449.9,2.24722967]
[1759938444394,0.6336,4450.4,4449.8,2.35929021]
[1759938444593,2.5536,4450.2,4449.8,0.112]
[1759938445291,0.6336,4450.3,4449.8,0.112]
[1759938445589,0.6336,4450.4,4450.0,0.112]
[1759938445788,0.6336,4450.6,4450.0,0.112]
[1759938446511,2.88049281,4450.6,4450.0,0.112]
[1759938446661,1.92,4450.5,4450.0,0.112]
[1759938446877,1.92,4450.3,4450.0,0.112]
[1759938447080,0.6336,4450.4,4450.0,0.112]
[1759938447291,1.92,4450.3,4450.0,0.112]
[1759938447514,2.24704511,4450.3,4450.0,0.112]
[1759938447719,2.24704511,4450.3,4449.4,2.24744692]
[1759938447720,2.24751999,4449.4,4449.1,0.011]
[1759938447889,2.24739302,4449.6,4449.5,0.112]
[1759938448393,0.6336,4449.8,4449.5,0.112]
[1759938448697,0.6336,4450.0,4449.5,0.112]
[1759938449302,2.3914,4450.6,4449.6,0.1404]
[1759938449303,0.6336,4450.1,4449.6,0.1404]
[1759938449492,0.6336,4450.1,4449.7,0.112]
[1759938449689,0.112,4450.5,4449.8,0.1404]
[1759938449911,0.01,4451.9,4449.8,0.1404]
[1759938449912,0.112,4450.9,4450.1,0.112]
[1759938450288,2.24679569,4450.8,4450.1,0.112]
[1759938450485,0.6336,4450.7,4450.1,2.3591344]
[1759938450809,2.5536,4450.5,4450.1,0.112]
[1759938451684,2.71778782,4451.6,4450.5,2.24691093]
[1759938451991,0.6336,4451.4,4450.7,2.35881107]
[1759938452216,0.6336,4451.4,4450.7,0.112]
[1759938452508,2.88010014,4451.4,4450.7,0.112]
[1759938452809,0.6336,4451.2,4450.7,0.112]
[1759938452989,0.6336,4451.4,4450.7,0.112]
[1759938453189,0.6336,4451.4,4450.8,2.24678709]
[1759938453408,0.6336,4451.4,4450.7,2.35883656]
[1759938453607,0.01,4451.9,4450.7,0.47461847]
[1759938453826,2.24678709,4450.8,4450.7,0.112]
[1759938454115,2.24709001,4450.2,4450.1,0.332]
[1759938454325,4.16703843,4450.4,4450.1,0.332]
[1759938454530,2.24703843,4450.4,4450.1,0.332]
[1759938454732,2.24703843,4450.4,4450.1,0.112]
[1759938454938,1.92,4450.7,4450.2,2.51459001]
[1759938455225,0.6336,4451.2,4450.3,0.112]
[1759938455426,0.6336,4451.0,4450.3,0.112]
[1759938455602,0.6336,4451.2,4450.3,0.112]
[1759938455805,0.6336,4451.2,4450.4,2.563]
[1759938456011,2.2462824,4451.8,4450.7,2.24680088]
[1759938456200,2.2462824,4451.8,4450.5,0.29425]
[1759938456201,2.2465692,4451.3,4451.0,0.112]
[1759938456601,0.6336,4451.7,4451.0,0.112]
[1759938456827,2.24657763,4451.3,4451.0,0.112]
[1759938457035,0.6336,4451.5,4451.0,0.112]
[1759938457337,1.105,4451.5,4451.0,0.112]
[1759938458018,2.24648464,4451.4,4451.0,0.112]
[1759938458203,2.24663566,4451.1,4451.0,0.112]
[1759938459541,0.002,4451.1,4451.0,0.112]
[1759938460236,0.6336,4451.0,4449.1,0.011]
[1759938460432,2.81026331,4451.1,4450.1,0.112]
[1759938460433,0.6336,4450.6,4450.1,0.112]
[1759938460734,4.16709001,4450.2,4450.1,0.112]
[1759938460928,1.92,4450.2,4450.1,0.112]
[1759938461537,0.4714,4450.7,4450.1,0.112]
[1759938461538,0.6336,4450.6,4450.1,0.112]
[1759938461706,0.6336,4450.9,4450.2,0.2674]
[1759938461902,0.002,4451.1,4450.5,0.112]
[1759938462108,0.6356,4451.1,4450.5,0.112]
[1759938462529,1.92,4451.0,4450.5,0.112]
[1759938462728,2.24668752,4451.0,4450.5,0.112]
[1759938463037,0.6336,4450.9,4450.5,0.112]
[1759938463244,2.24680031,4450.8,4450.5,0.112]
[1759938463736,2.24686033,4450.7,4450.5,0.112]
[1759938464238,0.6336,4450.9,4450.5,0.112]
[1759938464441,2.5536,4450.9,4450.5,0.2524]
[1759938464649,2.5536,4450.9,4450.5,0.112]
[1759938464934,0.6336,4450.9,4450.5,0.112]
[1759938465112,4.16683409,4450.8,4450.6,2.562]
[1759938465309,1.92,4450.8,4450.5,2.674]
[1759938465840,4.16678787,4450.8,4450.5,2.674]
[1759938466040,0.002,4451.1,4450.7,0.112]
[1759938466241,0.002,4451.1,4450.8,0.1404]
[1759938466545,0.002,4451.1,4450.7,0.112]
[1759938467740,0.002,4451.1,4450.7,2.35879962]
[1759938468068,0.002,4451.1,4451.0,0.112]
[1759938468209,0.002,4451.1,4450.5,2.8294]
[1759938468750,2.24864303,4451.1,4450.5,2.8294]
[1759938468948,1.92,4451.0,4450.6,2.561]
[1759938469136,2.24679507,4450.8,4450.6,2.561]
[1759938469333,2.2467515,4450.9,4450.6,2.561]
[1759938469743,2.24679599,4450.8,4450.6,2.561]
[1759938470051,2.24679599,4450.8,4450.2,0.1404]
[1759938470258,2.24679599,4450.8,4450.7,2.561]
[1759938470463,0.002,4451.1,4450.2,0.1404]
[1759938470649,2.24710219,4450.2,4449.3,0.1404]
[1759938470845,2.68858709,4450.8,4449.3,0.1404]
[1759938471036,1.0754,4450.8,4449.5,2.24740369]
[1759938471239,2.24712492,4450.2,4449.6,0.49488037]
[1759938471456,2.24685673,4450.7,4449.6,2.74225682]
[1759938471660,1.0754,4450.8,4449.6,0.49488037]
[1759938471829,1.0754,4450.8,4449.7,0.608]
[1759938471830,2.24714487,4450.1,4449.7,0.608]
[1759938472734,0.6336,4449.9,4449.1,0.011]
[1759938472953,2.88098647,4449.7,4449.1,0.011]
[1759938473260,4.80119507,4449.2,4449.1,0.011]
[1759938473759,0.6596,4449.8,4449.1,0.011]
[1759938473962,0.6336,4449.7,4449.1,0.011]
[1759938474164,1.92,4449.6,4449.1,0.011]
[1759938474336,2.24759507,4449.2,4449.1,0.011]
[1759938474537,1.92,4449.2,4449.1,0.011]
[1759938474739,0.6336,4450.0,4449.1,0.011]
[1759938474952,0.6336,4450.0,4449.4,2.24748491]
[1759938475128,0.6336,4450.0,4449.1,2.39904477]
[1759938475129,0.6336,4449.9,4449.1,0.1514]
[1759938475460,2.88084258,4449.9,4449.1,0.011]
[1759938475625,2.24734458,4449.7,4449.1,0.011]
[1759938476160,0.6336,4449.9,4449.4,2.24745542]
[1759938476357,2.5536,4450.5,4449.6,2.24736541]
[1759938476557,1.92,4450.6,4449.2,0.1404]
[1759938476756,0.6336,4450.3,4449.3,0.26237732]
[1759938476928,2.563,4451.1,4449.4,0.1404]
[1759938477130,1.92,4450.9,4449.4,0.1404]
[1759938477387,2.24725544,4449.9,4449.1,0.011]
[1759938477535,0.6336,4450.4,4449.1,0.011]
[1759938477739,0.6336,4449.9,4449.1,0.011]
[1759938477940,4.16759507,4449.2,4449.1,0.011]
[1759938478141,2.24759507,4449.2,4449.1,0.011]
[1759938478341,2.24755831,4449.3,4449.1,0.011]
[1759938478549,0.6336,4449.5,4449.1,0.011]
[1759938478733,2.24751504,4449.4,4449.1,0.011]
[1759938478933,0.6336,4449.5,4449.1,0.011]
[1759938479241,2.24759507,4449.2,4449.1,0.011]
[1759938480682,2.5536,4449.6,4449.1,0.011]
[1759938480832,0.6336,4449.6,4449.1,0.011]
[1759938481166,0.6336,4449.7,4449.1,0.011]
[1759938481464,2.24754455,4449.3,4449.2,2.567]
[1759938481838,2.24754455,4449.3,4449.1,0.011]
[1759938482236,2.5536,4449.7,4449.1,0.011]
[1759938482465,2.24754455,4449.3,4449.1,0.011]
[1759938482773,2.24754455,4449.3,4449.1,2.578]
[1759938483066,4.16750524,4449.4,4449.1,2.578]
[1759938483369,2.24755239,4449.3,4449.1,2.578]
[1759938484137,1.92,4449.4,4449.1,2.578]
[1759938484355,2.24749706,4449.4,4449.1,2.578]
[1759938484576,2.24755034,4449.3,4449.1,2.578]
[1759938484768,4.16755034,4449.3,4449.1,2.578]
[1759938485065,2.88112736,4449.4,4449.1,2.578]
[1759938485271,4.16758356,4449.3,4449.1,2.578]
[1759938485456,2.24759507,4449.2,4449.1,0.011]
[1759938485659,2.5536,4449.4,4449.1,2.577]
[1759938485853,0.6336,4449.7,4449.2,0.1404]
[1759938486087,0.6328,4449.7,4449.3,0.112]
[1759938486388,2.1444,4449.9,4449.3,0.112]
[1759938486586,2.1444,4449.9,4449.4,2.566]
[1759938486886,4.16729027,4449.9,4449.4,2.566]
[1759938487187,4.16724224,4449.9,4449.4,2.566]
[1759938487556,2.24744353,4449.5,4449.4,2.566]
[1759938487758,2.24741082,4449.6,4449.4,2.566]
[1759938487958,0.6336,4449.6,4449.5,2.566]
[1759938488387,0.6336,4449.5,4449.3,0.112]
[1759938488599,4.80109404,4449.4,4449.3,0.112]
[1759938488767,2.24759507,4449.2,4449.1,0.242]
[1759938489675,5.25299507,4449.2,4449.1,0.011]
[1759938490062,5.25299507,4449.2,4449.1,1e-08]
[1759938491057,7.81999507,4449.2,4449.1,1e-08]
[1759938491685,8.83794398,4449.2,4449.1,1e-08]
[1759938494006,23.01293379,4449.2,4449.1,1e-08]
[1759938495029,4.80170035,4448.2,4448.1,0.01]
[1759938495701,5.25350035,4448.2,4448.1,0.01]
[1759938495891,2.5536,4448.2,4448.1,0.01]
[1759938496091,5.25350035,4448.2,4448.1,0.01]
[1759938497034,4.80170035,4448.2,4448.1,0.01]
[1759938497315,5.25350035,4448.2,4448.1,0.01]
[1759938497632,5.25350035,4448.2,4448.1,0.011]
[1759938499182,6.02587028,4448.2,4448.1,0.011]
[1759938500015,3.32596993,4448.2,4448.1,0.011]
[1759938500310,3.0054,4448.2,4448.1,0.011]
[1759938500524,2.6656,4448.2,4448.1,0.011]
[1759938500684,4.91370035,4448.2,4448.1,0.011]
[1759938500882,5.36550035,4448.2,4448.1,0.011]
[1759938501732,5.36550035,4448.2,4448.1,1e-08]
[1759938501887,7.6172708,4448.2,4448.1,1e-08]
[1759938503922,2.032,4448.2,4448.1,1e-08]
[1759938504215,4.28010035,4448.2,4448.1,1e-08]
[1759938504416,4.91370035,4448.2,4448.1,1e-08]
[1759938504781,2.6656,4448.2,4448.1,1e-08]
[1759938505414,4.91370035,4448.2,4448.1,1e-08]
[1759938505582,2.6656,4448.2,4448.1,1e-08]
[1759938506010,4.91370035,4448.2,4448.1,1e-08]
[1759938506204,7.53620983,4448.2,4448.1,1e-08]
[1759938509005,7.53540983,4448.2,4448.1,1e-08]
[1759938509603,5.35730035,4448.2,4448.1,1e-08]
[1759938510836,5.35730035,4448.2,4447.1,0.01]
[1759938510837,2.88220586,4447.2,4447.1,0.01]
[1759938511002,4.80220586,4447.2,4447.1,0.01]
[1759938511205,5.24660586,4447.2,4447.1,0.01]
[1759938514405,2.24889335,4446.7,4446.1,0.01]
[1759938514613,2.5536,4446.1,4445.1,0.01]
[1759938514815,2.5536,4445.5,4445.1,0.01]
[1759938515020,2.5536,4445.2,4445.1,0.01]
[1759938515407,2.998,4445.2,4445.1,0.01]
[1759938515809,2.5536,4445.2,4445.1,0.01]
[1759938516045,1.92,4445.2,4445.1,2.25966817]